fUST/lending_fUST_20240409
["ID","MTS","AMOUNT","RATE_DAILY","PERIOD"]
[321971364,1712661053144,-835.66,0.0003589,5]
[321971365,1712661053154,-2336.91,0.0003589,5]
[321971366,1712661053163,-500.0,0.0003589,5]
[321971367,1712661053172,-1057.79,0.0003589,5]
[321971368,1712661053182,-500.0,0.0003589,5]
[321971369,1712661053191,-1414.0,0.0003589,5]
[321971370,1712661053201,-1136.27,0.0003589,5]
[321971371,1712661053211,-500.0,0.0003589,5]
[321971372,1712661053220,-500.0,0.0003589,5]
[321971373,1712661053229,-1503.79,0.0003589,5]
[321971374,1712661053238,-654.59,0.0003589,5]
[321971375,1712661053248,-500.0,0.0003589,5]
[321971376,1712661053257,-500.0,0.0003589,5]
[321971377,1712661053266,-500.0,0.0003589,5]
[321971378,1712661053276,-1684.88,0.0003589,5]
[321971379,1712661053286,-720.81,0.0003589,5]
[321971380,1712661053296,-500.0,0.0003589,5]
[321971381,1712661053306,-500.0,0.0003589,5]
[321971382,1712661053315,-500.0,0.0003589,5]
[321971383,1712661053325,-2917.3,0.0003589,5]
[321971384,1712661053335,-500.0,0.0003589,5]
[321971385,1712661053344,-1600.36,0.0003589,5]
[321971386,1712661053354,-500.0,0.0003589,5]
[321971387,1712661053364,-500.0,0.0003589,5]
[321971388,1712661053375,-1025.37,0.0003589,5]
[321971389,1712661053386,-2441.78,0.0003589,5]
[321971390,1712661053396,-1650.98,0.0003589,5]
[321971391,1712661053406,-341.64732285,0.0003589,5]
[321971392,1712661053416,-500.0,0.0003589,5]
[321971393,1712661053426,-602.76359374,0.0003589,5]
[321971394,1712661053436,-1414.79,0.0003589,5]
[321971395,1712661053446,-500.0,0.0003589,5]
[321971396,1712661053455,-557.73,0.0003589,5]
[321971397,1712661053466,-500.0,0.0003589,5]
[321971398,1712661053475,-500.0,0.0003589,5]
[321971399,1712661053485,-801.9,0.0003589,5]
[321971400,1712661053494,-151.0,0.0003589,2]
[321971401,1712661053505,-500.0,0.0003589,5]
[321971402,1712661053515,-16924.29,0.0003589,5]
[321971403,1712661053524,-151.0,0.0003589,2]
[321971404,1712661053534,-168.787488,0.0003589,2]
[321971405,1712661053543,-500.0,0.0003589,5]
[321971406,1712661053553,-500.0,0.0003589,5]
[321971407,1712661053564,-500.0,0.0003589,5]
[321971408,1712661053573,-500.0,0.0003589,5]
[321971409,1712661053583,-1687.93,0.0003589,5]
[321971410,1712661053592,-500.0,0.0003589,5]
[321971411,1712661053601,-526.08765852,0.0003589,5]
[321971412,1712661053611,-583.52,0.0003589,5]
[321971413,1712661053620,-500.0,0.0003589,5]
[321971414,1712661053631,-500.0,0.0003589,5]
[321971415,1712661053640,-363.093679,0.0003589,2]
[321971416,1712661053649,-363.093679,0.0003589,2]
[321971417,1712661053659,-363.093679,0.0003589,2]
[321971418,1712661053668,-500.0,0.0003589,5]
[321971419,1712661053678,-363.093679,0.0003589,2]
[321971420,1712661053687,-363.093679,0.0003589,2]
[321971421,1712661053697,-3245.32,0.0003589,5]
[321971422,1712661053706,-363.093679,0.0003589,2]
[321971423,1712661053715,-500.0,0.0003589,5]
[321971424,1712661053724,-500.0,0.0003589,5]
[321971425,1712661053733,-13649.39,0.0003589,5]
[321971426,1712661053742,-500.0,0.0003589,5]
[321971427,1712661053751,-151.0,0.0003589,2]
[321971428,1712661053761,-151.0,0.0003589,2]
[321971429,1712661053770,-151.0,0.0003589,2]
[321971430,1712661053779,-1135.82,0.0003589,5]
[321971431,1712661053788,-500.0,0.0003589,5]
[321971432,1712661053797,-500.0,0.0003589,5]
[321971433,1712661053807,-500.0,0.0003589,5]
[321971434,1712661053816,-204.475355,0.0003589,2]
[321971435,1712661053824,-94.49369552,0.0003589,5]
[321971463,1712662026106,-765.84554286,0.00024948,5]
[321971464,1712662026127,-300.0,0.00024949,2]
[321971465,1712662026147,-300.0,0.00024949,2]
[321971466,1712662026167,-205.70180304,0.00024949,2]
[321971467,1712662026189,-435.73017158,0.00024949,2]
[321971468,1712662026208,-242.74204017,0.00024949,2]
[321971469,1712662026231,-154.87609912,0.00024949,2]
[321971470,1712662026250,-283.34484323,0.00024949,2]
[321971471,1712662026270,-1617.16242552,0.0002495,2]
[321971472,1712662026289,-520.02567398,0.0002495,2]
[321971473,1712662045102,-360.86438748,0.00024949,2]
[321971474,1712662045122,-522.89028758,0.0002495,2]
[321971475,1712662045140,-5783.085097,0.0002495,2]
[321971476,1712662045159,-1652.5402603,0.00024951,2]
[321971477,1712662045179,-1120.63001617,0.00025523,2]
[321971478,1712662045201,-203.69871,0.00025535,2]
[321971479,1712662045220,-776.1696414,0.00025616,2]
[321971480,1712662045242,-340.952424,0.00025623,2]
[321971481,1712662045261,-1791.0,0.00026593,2]
[321971482,1712662045281,-419.08387377,0.00026594,3]
[321971483,1712662045300,-353.9401145,0.00026634,2]
[321971484,1712662045324,-21808.1120613,0.00026682,2]
[321971485,1712662045344,-1550.7402959,0.00026694,2]
[321971486,1712662045364,-175.540888,0.00026947,2]
[321971487,1712662045390,-420.0,0.0002703,2]
[321971488,1712662045410,-805.43814223,0.00027121,2]
[321971489,1712662045431,-210.31341368,0.00027122,2]
[321971490,1712662045453,-159.432861,0.00027397,2]
[321971491,1712662045472,-420.0,0.00027444,2]
[321971492,1712662045493,-419.08387373,0.00028222,4]
[321971493,1712662045515,-587.0,0.00029284,2]
[321971494,1712662045536,-419.08387373,0.0002985,4]
[321971495,1712662045555,-326.0172062,0.00029999,2]
[321971496,1712662045579,-500.0,0.00029999,2]
[321971497,1712662045599,-500.0,0.00029999,2]
[321971498,1712662045619,-500.0,0.00029999,2]
[321971499,1712662045640,-500.0,0.00029999,2]
[321971500,1712662045660,-290.13965477,0.00029999,2]
[321971501,1712662045680,-500.0,0.00029999,2]
[321971502,1712662045702,-500.0,0.00029999,2]
[321971503,1712662045722,-254.86659853,0.00029999,2]
[321971504,1712662045741,-339.16824159,0.00029999,2]
[321971505,1712662045762,-500.0,0.00029999,2]
[321971506,1712662045781,-11609.48271544,0.0003,30]
[321971507,1712662048011,-925.01140609,0.0003,30]
[321971523,1712662232528,-765.84554286,0.00029477,5]
[321971525,1712662232537,-170.476212,0.00029478,2]
[321971527,1712662232546,-295.58553656,0.000299,4]
[321971529,1712662232555,-300.0,0.00029999,2]
[321971531,1712662232565,-300.0,0.00029999,2]
[321971532,1712662232575,-41598.70358052,0.0003,30]
[321971533,1712662232585,-1013.10269998,0.0003,4]
[321971535,1712662232594,-157.52447006,0.00030067,2]
[321971536,1712662232603,-1143.64744983,0.00030168,2]
[321971538,1712662232612,-585.43401171,0.00031675,4]
[321971540,1712662232622,-276.37478336,0.00031675,4]
[321971541,1712662232631,-646.18237249,0.00031676,2]
[321971542,1712662232640,-157.52447005,0.00031883,2]
[321971543,1712662232649,-1194.0,0.00032329,4]
[321971544,1712662232658,-1194.0,0.0003233,4]
[321971545,1712662232667,-420.0,0.00032332,2]
[321971546,1712662232676,-166.666666,0.00032877,2]
[321971547,1712662232686,-212.03364599,0.00032899,2]
[321971548,1712662232695,-420.0,0.00032999,2]
[321971549,1712662232704,-1000.0,0.00033,4]
[321971550,1712662232713,-1272.37103576,0.00033,4]
[321971551,1712662232722,-396.39215654,0.00033106,2]
[321971552,1712662232731,-621.30911862,0.0003326,2]
[321971553,1712662232740,-3199.16691731,0.000334,2]
[321971554,1712662232748,-1000.0,0.000335,2]
[321971555,1712662232758,-166.666666,0.00033646,2]
[321971556,1712662232766,-157.52447005,0.000337,2]
[321971557,1712662232775,-1242.64349011,0.00033833,4]
[321971558,1712662232784,-287.14499117,0.00033834,4]
[321971559,1712662232793,-3199.16691731,0.00033929,2]
[321971560,1712662232802,-1000.0,0.00034,2]
[321971561,1712662232810,-212.03364599,0.00034207,2]
[321971562,1712662232820,-153.0,0.00034279,2]
[321971563,1712662232830,-153.0,0.00034279,2]
[321971564,1712662232838,-153.0,0.00034279,2]
[321971565,1712662232848,-155.84457082,0.00034354,4]
[321971566,1712662232856,-166.666666,0.00034415,2]
[321971567,1712662232865,-15568.0578,0.0003445,30]
[321971568,1712662232874,-338.63128062,0.00034457,7]
[321971569,1712662232883,-500.0,0.00034457,7]
[321971570,1712662232891,-3199.16691731,0.00034458,2]
[321971571,1712662232900,-1000.0,0.000345,2]
[321971572,1712662232909,-587.0,0.00034847,2]
[321971573,1712662232918,-477.1507943,0.00034899,4]
[321971574,1712662232926,-3199.16691731,0.00034987,2]
[321971575,1712662232936,-1033.22888712,0.00035,2]
[321971576,1712662232944,-596.08980381,0.000351,2]
[321971577,1712662232953,-166.666666,0.00035185,2]
[321971578,1712662232962,-154.90705577,0.00035439,4]
[321971579,1712662232971,-320.1732153,0.0003544,2]
[321971580,1712662232980,-1381.75802168,0.00035513,2]
[321971581,1712662232989,-569.18094076,0.00035516,2]
[321971582,1712662232997,-3199.16691731,0.00035516,2]
[321971583,1712662233006,-157.52447005,0.00035516,2]
[321971584,1712662233015,-156.6294846,0.00035531,3]
[321971585,1712662233024,-1457.08403844,0.00035577,4]
[321971586,1712662233033,-36737.47162522,0.0003561,120]
[321971587,1712662233043,-203.85276439,0.0003561,3]
[321971588,1712662233052,-241.75457514,0.00035611,4]
[321971589,1712662233060,-229.27466344,0.00035611,4]
[321971590,1712662233069,-2140.6750497,0.00035611,4]
[321971591,1712662233079,-470.02690454,0.00035612,4]
[321971592,1712662233088,-484.64574135,0.00035612,4]
[321971593,1712662233097,-225.30567834,0.00035612,4]
[321971594,1712662233106,-216.67010204,0.00035613,4]
[321971595,1712662233114,-55466.10936801,0.00035614,4]
[321971596,1712662233123,-799.19959429,0.00035614,35]
[321971597,1712662233132,-288.25852322,0.00035614,4]
[321971598,1712662233141,-566.07606285,0.00035614,4]
[321971599,1712662233149,-489.98977021,0.00035614,4]
[321971600,1712662233158,-227.53396361,0.00035614,4]
[321971601,1712662233167,-19335.57226974,0.00035614,4]
[321971602,1712662233175,-377.13311303,0.00035614,2]
[321971603,1712662233184,-179.55765581,0.00035614,4]
[321971604,1712662233193,-2817.49742642,0.00035614,4]
[321971605,1712662233202,-91208.03643155,0.00035614,3]
[321971606,1712662233221,-323.51425651,0.00034457,7]
[321971607,1712662233230,-17044.02572138,0.00035614,3]
[321971608,1712662233244,-351.75047247,0.00034457,7]
[321971609,1712662233253,-4716.2838762,0.00035614,3]
[321971621,1712662238598,-295.58553656,0.00031056,5]
[321971622,1712662238607,-295.58553656,0.00032211,5]
[321971624,1712662238616,-212.03364599,0.00035515,2]
[321971626,1712662238625,-156.6294846,0.00035531,3]
[321971627,1712662238635,-24323.69422534,0.00035614,3]
[321971628,1712662238647,-5406.45279634,0.00035614,3]
[321972081,1712662247393,-295.58553656,0.00033367,6]
[321972082,1712662247402,-596.08980381,0.00035,2]
[321972083,1712662247411,-2000.0,0.00035514,2]
[321972084,1712662247420,-1401.23065853,0.00035578,4]
[321972085,1712662247429,-532.5226006,0.00035614,4]
[321972198,1712662254604,156.53326933,0.00026711,2]
[321972214,1712663235205,-282.7345517,0.00023994,2]
[321972215,1712663235226,-185.58568069,0.00023994,2]
[321972216,1712663235247,-271.89359431,0.00023994,2]
[321972217,1712663235266,-518.395,0.00023995,2]
[321972218,1712663235287,-403.53188558,0.00023995,2]
[321972219,1712663249148,-181.0288212,0.00023994,2]
[321972220,1712663249168,-154.87609912,0.00023994,2]
[321972221,1712663249188,-121.20124103,0.00023995,2]
[321972222,1712663249208,-457.67067254,0.00023995,2]
[321972224,1712663360118,-157.26509838,0.00021894,2]
[321972225,1712663360144,-323.20061628,0.00021895,2]
[321972226,1712663360165,-442.5467305,0.00023991,5]
[321972227,1712663364091,-581.86154743,0.00021893,2]
[321972269,1712663432745,-323.29881236,0.00023991,5]
[321972271,1712663432754,-2504.6269835,0.00023995,2]
[321972273,1712663432764,-150.0,0.00024,2]
[321972275,1712663432773,-170.855526,0.00025234,2]
[321972277,1712663432785,-323.20061628,0.00026895,2]
[321972279,1712663432795,-164.068682,0.00027397,2]
[321972281,1712663432804,-164.000609,0.00027397,2]
[321972283,1712663432813,-160.618335,0.00027397,2]
[321972285,1712663432822,-191.150142,0.00029345,2]
[321972287,1712663432831,-724.25892593,0.000299,2]
[321972289,1712663432841,-1005.39899839,0.0003,4]
[321972291,1712663432850,-400.0,0.00031623,2]
[321972293,1712663432859,-400.0,0.00031623,2]
[321972295,1712663432868,-24890.0,0.00031624,2]
[321972297,1712663432877,-323.20061628,0.00031895,2]
[321972299,1712663432887,-243.22490372,0.00032775,4]
[321972301,1712663432896,-249.34736369,0.00032776,4]
[321972303,1712663432905,-177.24361936,0.00032777,6]
[321972305,1712663432914,-166.666666,0.00032877,2]
[321972307,1712663432923,-1000.0,0.00033,4]
[321972309,1712663432932,-164.000609,0.00033486,2]
[321972311,1712663432941,-177.24361932,0.0003352,6]
[321972313,1712663432950,-166.666666,0.00033646,2]
[321972314,1712663432959,-513.0,0.00034026,2]
[321972316,1712663432968,-164.068682,0.00034247,2]
[321972319,1712663432978,-160.618335,0.00034247,2]
[321972321,1712663432987,-177.24361932,0.00034262,6]
[321972322,1712663432997,-202.7418102,0.00034279,2]
[321972325,1712663433007,-51.43069314,0.00034279,2]
[321972571,1712663438650,-151.31111706,0.00034279,2]
[321972572,1712663438659,-153.0,0.00034279,2]
[321972573,1712663438669,-166.666666,0.00034415,2]
[321972574,1712663438678,-202.7418102,0.00034778,2]
[321972575,1712663438687,-560.0,0.00034786,2]
[321972576,1712663438697,-596.08980381,0.00035004,2]
[321972577,1712663438706,-177.24361932,0.00035005,7]
[321972578,1712663438716,-306.0,0.00035101,2]
[321972579,1712663438725,-153.0,0.00035152,2]
[321972580,1712663438734,-166.666666,0.00035185,2]
[321972581,1712663438743,-273.33525029,0.00035515,2]
[321972582,1712663438752,-273.33525027,0.00035516,2]
[321972583,1712663438762,-770.38066978,0.00035516,2]
[321972584,1712663438771,-273.33525027,0.00035516,2]
[321972585,1712663438780,-156.62948461,0.00035531,3]
[321972586,1712663438790,-348.76934147,0.00035578,4]
[321972587,1712663438800,-770.38066978,0.00035585,2]
[321972588,1712663438809,-186.57135194,0.00035614,4]
[321972589,1712663438818,-887.1997434,0.00035614,4]
[321972590,1712663438827,-360.86438748,0.00035614,4]
[321972591,1712663438837,-155.22029755,0.00035614,4]
[321972592,1712663438847,-304.74157101,0.00035614,4]
[321972593,1712663438857,-781.77175279,0.00035614,4]
[321972594,1712663438867,-560.07560161,0.00035614,4]
[321972595,1712663438877,-2809.38952332,0.00035614,4]
[321972596,1712663438886,-216.67010204,0.00035614,4]
[321972598,1712663438895,-346.422471,0.00035614,4]
[321972599,1712663438904,-227.52815606,0.00035614,4]
[321972600,1712663438914,-371.802521,0.00035614,4]
[321972601,1712663438925,-244.988118,0.00035614,4]
[321972602,1712663438935,-365.30809216,0.00035614,4]
[321972603,1712663438945,-581.36551982,0.00035614,4]
[321972604,1712663438956,-211.29667729,0.00035614,4]
[321972605,1712663438966,-6580.64170379,0.00035615,4]
[321972606,1712663438977,-156.78959323,0.00035615,4]
[321972607,1712663438987,-698.07663535,0.00035615,4]
[321972608,1712663438997,-464.52912341,0.00035615,4]
[321972609,1712663439006,-177.4944122,0.00035615,4]
[321972610,1712663439016,-154.98450155,0.00035615,4]
[321972611,1712663439026,-336.84676511,0.00035615,4]
[321972612,1712663439037,-284.02551928,0.00035615,4]
[321972613,1712663439047,-1666.66002045,0.00035615,4]
[321972614,1712663439056,-243.93954417,0.00035615,4]
[321972615,1712663439065,-601.69586859,0.00035615,4]
[321972616,1712663439075,-371.98712946,0.00035615,4]
[321972617,1712663439084,-273.23091232,0.00035615,4]
[321972618,1712663439095,-303.26282161,0.00035615,4]
[321972619,1712663439105,-536.60597504,0.00035615,4]
[321972620,1712663439117,-959.02353219,0.00035615,4]
[321972621,1712663439128,-212.97620983,0.00035615,4]
[321972622,1712663439139,-207.24041701,0.00035615,4]
[321972623,1712663439151,-259.32603636,0.00035615,4]
[321972624,1712663439163,-154.93802479,0.00035615,4]
[321972625,1712663439174,-464.15092473,0.00035615,4]
[321972626,1712663439185,-156.53042178,0.00035615,4]
[321972627,1712663439196,-158.22587908,0.00035615,4]
[321972628,1712663439206,-757.67588734,0.00035615,4]
[321972629,1712663439217,-668.76456763,0.00035615,4]
[321972630,1712663439228,-211.47618057,0.00035615,4]
[321972631,1712663439238,-365.03591678,0.00035615,7]
[321972632,1712663439248,-2038.2069545,0.00035615,4]
[321972633,1712663439257,-201.09549684,0.00035615,4]
[321972634,1712663439267,-3350.62264883,0.00035615,4]
[321972642,1712663440726,-1500.0,0.00035516,2]
[321972643,1712663440845,-1097.1857505,0.00035615,4]
[321972644,1712663440856,-282.0779007,0.00035615,4]
[321972645,1712663440866,-1130.04285843,0.00035615,4]
[321972646,1712663440876,-136399.56405332,0.00035616,3]
[321973086,1712664442164,-458.80038916,0.0002737,2]
[321973087,1712664444117,-584.1155724,0.0002737,2]
[321973088,1712664444136,-303.81962515,0.00027371,2]
[321973089,1712664444156,-389.40479141,0.00027371,5]
[321973095,1712664553143,-154.21541644,0.00025271,2]
[321973096,1712664559104,-376.44075145,0.00027371,5]
[321973097,1712664559124,-698.7119682,0.00027383,2]
[321973098,1712664559146,-193.571545,0.00027397,2]
[321973099,1712664559166,-159.432861,0.00027397,2]
[321973100,1712664559187,-1165.75148064,0.00028666,2]
[321973101,1712664559207,-300.0,0.00028769,2]
[321973102,1712664559228,-12563.6845073,0.0002877,2]
[321973103,1712664559248,-530.911043,0.00030162,2]
[321973104,1712664559268,-154.21541644,0.00030271,2]
[321973105,1712664559289,-3459.17185282,0.0003076,2]
[321973152,1712664631984,-1028.96714013,0.00031137,30]
[321973153,1712664631994,-2092.8334783,0.00031138,2]
[321973154,1712664632004,-156.76454493,0.00031546,5]
[321973155,1712664632014,-170.710275,0.00031666,2]
[321973156,1712664632023,-252.3162382,0.00032586,2]
[321973157,1712664632035,-156.76454489,0.00032614,6]
[321973158,1712664632046,-408.20295126,0.00032876,4]
[321973159,1712664632056,-166.666666,0.00032877,2]
[321973160,1712664632065,-400.0,0.00033241,2]
[321973161,1712664632074,-8698.02285244,0.00033242,2]
[321973192,1712664637932,-377.38694478,0.00033242,2]
[321973193,1712664638053,-15824.59020278,0.00033242,2]
[321973195,1712664638064,-974.0,0.000333,2]
[321973198,1712664638074,-166.666666,0.00033646,2]
[321973201,1712664638084,-156.76454489,0.00033682,6]
[321973203,1712664638095,-1516.7655,0.00034407,30]
[321973205,1712664638105,-166.666666,0.00034415,2]
[321973206,1712664638114,-503.1231092,0.00034499,5]
[321973208,1712664638125,-603.85991666,0.00034499,5]
[321973210,1712664638134,-233.292142,0.00034708,2]
[321973212,1712664638143,-156.76454489,0.0003475,7]
[321973213,1712664638152,-380.58151889,0.00034902,4]
[321973214,1712664638162,-947.82533218,0.00034999,2]
[321973215,1712664638171,-1500.0,0.00035,2]
[321973216,1712664638180,-14074.0,0.00035,2]
[321973217,1712664638189,-596.08980381,0.00035,2]
[321973218,1712664638198,-1000.0,0.00035,35]
[321973219,1712664638207,-166.666666,0.00035185,2]
[321973220,1712664638216,-154.21541644,0.00035271,2]
[321973221,1712664638224,-462.2284019,0.00035514,2]
[321973222,1712664638233,-2000.0,0.00035515,2]
[321973223,1712664638242,-500.0,0.00035515,5]
[321973224,1712664638251,-500.0,0.00035515,5]
[321973225,1712664638260,-3036.31185894,0.00035529,4]
[321973226,1712664638269,-156.62948461,0.00035531,3]
[321973227,1712664638278,-196.96093067,0.00035545,2]
[321973228,1712664638287,-1457.08403844,0.00035577,4]
[321973229,1712664638296,-500.0,0.0003558,5]
[321973230,1712664638305,-10932.85034344,0.0003558,5]
[321973231,1712664638314,-462.22840186,0.00035583,2]
[321973232,1712664638323,-291.49532115,0.00035599,5]
[321973233,1712664638332,-15150.53851183,0.000356,2]
[321973234,1712664638344,-261.683,0.000356,2]
[321973366,1712664639901,-25480.03186424,0.000356,2]
[321973368,1712664639911,-500.0,0.00035613,5]
[321973370,1712664639920,-500.0,0.00035613,5]
[321973372,1712664639929,-4426.3,0.00035613,5]
[321973374,1712664639938,-1110.69,0.00035613,5]
[321973376,1712664639948,-500.0,0.00035613,5]
[321973378,1712664639959,-690.86,0.00035613,5]
[321973380,1712664639968,-500.0,0.00035613,5]
[321973383,1712664639989,-939.92,0.00035613,5]
[321973386,1712664640002,-534.89,0.00035613,5]
[321973388,1712664640013,-1041.17,0.00035613,5]
[321973390,1712664640023,-1193.93,0.00035613,5]
[321973392,1712664640035,-713.37,0.00035613,2]
[321973394,1712664640045,-713.37,0.00035613,2]
[321973396,1712664640056,-713.37,0.00035613,2]
[321973398,1712664640066,-713.37,0.00035613,2]
[321973400,1712664640076,-713.37,0.00035613,2]
[321973402,1712664640087,-713.37,0.00035613,2]
[321973404,1712664640098,-713.37,0.00035613,2]
[321973406,1712664640107,-713.37,0.00035613,2]
[321973408,1712664640118,-713.37,0.00035613,2]
[321973411,1712664640129,-4997.8,0.00035613,5]
[321973413,1712664640140,-1926.76,0.00035613,5]
[321973415,1712664640150,-795.87434792,0.00035614,4]
[321973416,1712664640159,-325.73813838,0.00035614,4]
[321973418,1712664640169,-330.70671314,0.00035614,2]
[321973421,1712664640179,-923.01244516,0.00035614,4]
[321973423,1712664640189,-781.78611462,0.00035614,4]
[321973425,1712664640198,-15114.97834513,0.00035614,4]
[321973427,1712664640207,-500.0,0.00035614,14]
[321973429,1712664640216,-500.0,0.00035614,5]
[321973430,1712664640225,-500.0,0.00035614,5]
[321973432,1712664640235,-267.00492922,0.00035614,5]
[321973435,1712664640248,-232.99507078,0.00035614,5]
[321973437,1712664640258,-718.79,0.00035614,5]
[321973439,1712664640267,-500.0,0.00035614,5]
[321973441,1712664640277,-500.0,0.00035614,5]
[321973443,1712664640287,-500.0,0.00035614,5]
[321973445,1712664640297,-500.0,0.00035614,5]
[321973447,1712664640308,-500.0,0.00035614,5]
[321973449,1712664640318,-500.0,0.00035614,5]
[321973451,1712664640327,-500.0,0.00035614,5]
[321973453,1712664640337,-421.54478705,0.00035614,5]
[321973455,1712664640348,-500.0,0.00035614,5]
[321973457,1712664640358,-500.0,0.00035614,5]
[321973459,1712664640371,-621.1,0.00035614,5]
[321973461,1712664640382,-500.0,0.00035614,5]
[321973463,1712664640393,-500.0,0.00035614,5]
[321973465,1712664640402,-345.38173274,0.00035614,5]
[321973468,1712664640419,-154.61826726,0.00035614,5]
[321973470,1712664640429,-585.40827387,0.00035614,5]
[321973472,1712664640439,-501.71978551,0.00035614,5]
[321973474,1712664640449,-158.42055663,0.00035614,5]
[321973794,1712665102036,-1028.96714013,0.0003133,30]
[321973886,1712665626124,-205.70180304,0.0002739,2]
[321973887,1712665626144,-264.59046087,0.0002739,7]
[321973888,1712665626163,-765.84554286,0.0002739,5]
[321973889,1712665626187,-161.87326444,0.00027391,2]
[321973890,1712665654092,-437.03026423,0.0002739,2]
[321973893,1712665754170,-156.53326933,0.00026914,2]
[321973894,1712665754192,-157.32244857,0.00027295,2]
[321973895,1712665754212,-868.36531208,0.00027393,2]
[321973896,1712665754232,-581.86154743,0.00027394,2]
[321973897,1712665754254,-300.0,0.00027395,2]
[321973898,1712665754276,-300.0,0.00027395,2]
[321973899,1712665754297,-691.51519347,0.00027395,2]
[321973900,1712665754319,-518.395,0.00027396,2]
[321973901,1712665754340,-518.395,0.00027396,2]
[321973902,1712665754361,-518.395,0.00027396,2]
[321973903,1712665754391,-518.395,0.00027396,2]
[321973904,1712665754425,-159.83694325,0.00027396,2]
[321973919,1712665832060,-300.0,0.00027395,2]
[321973920,1712665832071,-300.0,0.00027395,2]
[321973921,1712665832081,-358.55805675,0.00027396,2]
[321973922,1712665832090,-495.45810789,0.00027396,2]
[321973996,1712665842535,-22.93689211,0.00027396,2]
[321973998,1712665842544,-376.27310482,0.00027396,2]
[321974007,1712665842737,-142.12189518,0.00027396,2]
[321974008,1712665842746,-518.395,0.00027396,2]
[321974009,1712665842755,-518.395,0.00027396,2]
[321974011,1712665842764,-199.71328391,0.00027396,2]
[321974670,1712666001444,9772.72233167,0.000262,7]
[321974672,1712666061371,264.59046087,0.00025295,7]
[321974676,1712666234794,2784.0,0.00026192,60]
[321974741,1712666830146,-604.31221933,0.00025171,2]
[321974742,1712666836127,-438.60374223,0.00025171,2]
[321974743,1712666836148,-181.0288212,0.00025172,2]
[321974744,1712666836168,-303.81962515,0.00025172,2]
[321974745,1712666836188,-185.58568069,0.00025172,2]
[321974746,1712666836217,-278.69119727,0.00025172,2]
[321974747,1712666851108,-646.19060037,0.00025172,2]
[321974748,1712666851130,-518.395,0.00025173,2]
[321974749,1712666851150,-155.20236175,0.0002519,2]
[321974750,1712666851169,-150.0,0.00025296,2]
[321974751,1712666851189,-192.35275016,0.00027294,3]
[321974753,1712666960120,-181.01620914,0.00024092,2]
[321974896,1712667038583,-59.88782342,0.00027294,3]
[321974898,1712667038592,-581.86154743,0.00027387,2]
[321974900,1712667038602,-209.47630741,0.00027388,5]
[321974960,1712667040312,-556.36923545,0.00027388,5]
[321974962,1712667040320,-300.0,0.00027392,2]
[321974964,1712667040330,-300.0,0.00027392,2]
[321974966,1712667040340,-325.83584302,0.00027393,2]
[321974968,1712667040352,-1778.4605,0.00027393,2]
[321974971,1712667040363,-443.06000026,0.00027393,2]
[321975093,1712667043571,-7945.655711,0.00027393,2]
[321975160,1712667488359,-211.40870572,0.00025292,2]
[321975161,1712667488389,-150.0,0.00025293,2]
[321975162,1712667488420,-155.20236174,0.00027297,2]
[321975164,1712667552376,148.77786508,0.00027395,2]
[321975165,1712667555760,-433.08368235,0.00027395,2]
[321975166,1712667555795,-3137.24198449,0.00027396,2]
[321975167,1712667555825,-166.417883,0.00027397,2]
[321975168,1712667555857,-164.000609,0.00027397,2]
[321975169,1712667555890,-164.495183,0.00027397,2]
[321975170,1712667555922,-161.1674652,0.00027397,2]
[321975171,1712667555953,-159.432861,0.00027397,2]
[321975172,1712667555986,-250.0,0.00028056,2]
[321975173,1712667556006,-433.08368235,0.00028128,2]
[321975174,1712667556017,-2180.99636286,0.00028128,2]
[321975175,1712667556027,-300.0,0.00028131,2]
[321975176,1712667556036,-300.0,0.00028131,2]
[321975177,1712667556045,-356.24562163,0.00028132,2]